[Event "Titled Tuesday Blitz October 25 Late 2022"]
[White "Lamaze, Simon"]
[Black "Goncalves, Davi Sulzbacher"]
[WhiteFideId "36069264"]
[BlackFideId "2154510"]
[WhiteElo "2272"]
[BlackElo "2182"]
[Result "1/2-1/2"]
[Round "04"]
[TimeControl "180+1"]
[Date "2022.10.26"]
[WhiteClock "0:00:18"]
[BlackClock "0:00:10"]

1. d4 {[%clk 0:03:00]}  Nf6 {[%clk 0:02:59]} 2. c4 {[%clk 0:03:00]}  e6 {[%clk 0:02:59]} 3. g3 {[%clk 0:03:00]}  d5 {[%clk 0:02:59]} 4. Nf3 {[%clk 0:03:00]}  Bb4+ {[%clk 0:02:59]} 5. Bd2 {[%clk 0:03:00]}  Be7 {[%clk 0:02:58]} 6. Bg2 {[%clk 0:03:00]}  c6 {[%clk 0:02:57]} 7. Qc2 {[%clk 0:03:00]}  O-O {[%clk 0:02:56]} 8. h4 {[%clk 0:03:00]}  Nbd7 {[%clk 0:02:55]} 9. Nc3 {[%clk 0:02:58]}  b6 {[%clk 0:02:54]} 10. e4 {[%clk 0:02:51]}  dxe4 {[%clk 0:02:52]} 11. Ng5 {[%clk 0:02:47]}  Bb7 {[%clk 0:02:50]} 12. Ngxe4 {[%clk 0:02:26]}  e5 {[%clk 0:02:38]} 13. Nxf6+ {[%clk 0:02:11]}  Bxf6 {[%clk 0:02:38]} 14. d5 {[%clk 0:02:12]}  cxd5 {[%clk 0:02:24]} 15. cxd5 {[%clk 0:02:13]}  e4 {[%clk 0:02:19]} 16. O-O {[%clk 0:02:05]}  Bxc3 {[%clk 0:02:18]} 17. Bxc3 {[%clk 0:02:05]}  f5 {[%clk 0:02:04]} 18. Rad1 {[%clk 0:02:02]}  Rc8 {[%clk 0:02:02]} 19. f3 {[%clk 0:01:57]}  Qc7 {[%clk 0:01:50]} 20. Qf2 {[%clk 0:01:27]}  e3 {[%clk 0:01:07]} 21. Qxe3 {[%clk 0:01:26]}  Qxg3 {[%clk 0:01:07]} 22. Qg5 {[%clk 0:01:26]}  Qxg5 {[%clk 0:01:05]} 23. hxg5 {[%clk 0:01:27]}  f4 {[%clk 0:01:03]} 24. Bh3 {[%clk 0:01:25]}  Rcd8 {[%clk 0:01:01]} 25. Rfe1 {[%clk 0:01:25]}  Nc5 {[%clk 0:00:59]} 26. Re5 {[%clk 0:01:09]}  Rd6 {[%clk 0:00:52]} 27. Kf2 {[%clk 0:01:08]}  Rfd8 {[%clk 0:00:51]} 28. Re7 {[%clk 0:01:08]}  Rxd5 {[%clk 0:00:48]} 29. Rxg7+ {[%clk 0:01:07]}  Kf8 {[%clk 0:00:48]} 30. Rxd5 {[%clk 0:00:44]}  Rxd5 {[%clk 0:00:49]} 31. Rxh7 {[%clk 0:00:41]}  Rxg5 {[%clk 0:00:47]} 32. b4 {[%clk 0:00:36]}  Nd3+ {[%clk 0:00:47]} 33. Ke2 {[%clk 0:00:36]}  Ba6 {[%clk 0:00:47]} 34. Rxa7 {[%clk 0:00:32]}  Bc4 {[%clk 0:00:46]} 35. Kd2 {[%clk 0:00:25]}  Rh5 {[%clk 0:00:38]} 36. Ra8+ {[%clk 0:00:23]}  Kf7 {[%clk 0:00:33]} 37. Rh8 {[%clk 0:00:22]}  Rxh8 {[%clk 0:00:30]} 38. Bxh8 {[%clk 0:00:23]}  Nf2 {[%clk 0:00:22]} 39. Bf5 {[%clk 0:00:20]}  Bxa2 {[%clk 0:00:21]} 40. Bd4 {[%clk 0:00:20]}  Nh1 {[%clk 0:00:18]} 41. Bxb6 {[%clk 0:00:20]}  Bd5 {[%clk 0:00:18]} 42. Bg4 {[%clk 0:00:17]}  Ng3 {[%clk 0:00:16]} 43. Bc7 {[%clk 0:00:16]}  Nf1+ {[%clk 0:00:14]} 44. Kd3 {[%clk 0:00:16]}  Nh2 {[%clk 0:00:13]} 45. Bxf4 {[%clk 0:00:16]}  Nxf3 {[%clk 0:00:11]} 46. Bd7 {[%clk 0:00:16]}  Ke7 {[%clk 0:00:10]} 47. Ba4 {[%clk 0:00:17]}  Kf6 {[%clk 0:00:11]} 48. Bc7 {[%clk 0:00:16]}  Ke7 {[%clk 0:00:11]} 49. Bd1 {[%clk 0:00:17]}  Kd7 {[%clk 0:00:10]} 50. Bf4 {[%clk 0:00:17]}  Kc6 {[%clk 0:00:10]} 51. Ke3 {[%clk 0:00:17]}  Nh4 {[%clk 0:00:09]} 52. Bc2 {[%clk 0:00:17]}  Ng2+ {[%clk 0:00:08]} 53. Kd4 {[%clk 0:00:16]}  Nxf4 {[%clk 0:00:09]} 54. Be4 {[%clk 0:00:16]}  Ne6+ {[%clk 0:00:09]} 55. Ke5 {[%clk 0:00:16]}  Bxe4 {[%clk 0:00:09]} 56. Kxe4 {[%clk 0:00:17]}  Kb5 {[%clk 0:00:09]} 57. Ke5 {[%clk 0:00:18]}  Kxb4 {[%clk 0:00:10]} 1/2-1/2


[Site "https://www.chess.com"]

[Event "Titled Tuesday Blitz October 25 Late 2022"]
[White "Leenhouts, Koen"]
[Black "Al Hosani, Omran"]
[WhiteFideId "1008439"]
[BlackFideId "9308733"]
[WhiteElo "2409"]
[BlackElo "2167"]
[Result "1-0"]
[Round "04"]
[TimeControl "180+1"]
[Date "2022.10.26"]
[WhiteClock "0:00:05"]
[BlackClock "0:00:03"]

1. d4 {[%clk 0:03:00]}  Nf6 {[%clk 0:02:58]} 2. c4 {[%clk 0:03:00]}  e6 {[%clk 0:02:58]} 3. Nc3 {[%clk 0:03:00]}  d5 {[%clk 0:02:58]} 4. Nf3 {[%clk 0:02:58]}  Be7 {[%clk 0:02:47]} 5. Bg5 {[%clk 0:02:55]}  O-O {[%clk 0:02:44]} 6. e3 {[%clk 0:02:56]}  c6 {[%clk 0:02:41]} 7. Bd3 {[%clk 0:02:54]}  Nbd7 {[%clk 0:02:34]} 8. O-O {[%clk 0:02:54]}  dxc4 {[%clk 0:02:11]} 9. Bxc4 {[%clk 0:02:52]}  b5 {[%clk 0:02:11]} 10. Bb3 {[%clk 0:02:52]}  Bb7 {[%clk 0:02:09]} 11. a3 {[%clk 0:02:49]}  a6 {[%clk 0:01:58]} 12. Qe2 {[%clk 0:02:47]}  c5 {[%clk 0:01:57]} 13. Rfd1 {[%clk 0:02:47]}  Qb6 {[%clk 0:01:55]} 14. Bc2 {[%clk 0:02:28]}  Rfd8 {[%clk 0:01:32]} 15. Rac1 {[%clk 0:02:25]}  Rac8 {[%clk 0:01:27]} 16. h3 {[%clk 0:02:21]}  cxd4 {[%clk 0:01:20]} 17. exd4 {[%clk 0:02:20]}  h6 {[%clk 0:01:11]} 18. Bh4 {[%clk 0:02:17]}  Kh8 {[%clk 0:01:08]} 19. d5 {[%clk 0:02:09]}  Rxc3 {[%clk 0:00:49]} 20. bxc3 {[%clk 0:02:05]}  Bxd5 {[%clk 0:00:49]} 21. Ra1 {[%clk 0:01:34]}  Rc8 {[%clk 0:00:36]} 22. Ne5 {[%clk 0:01:15]}  Nxe5 {[%clk 0:00:32]} 23. Qxe5 {[%clk 0:01:15]}  Qb7 {[%clk 0:00:29]} 24. Qg3 {[%clk 0:01:08]}  Nh5 {[%clk 0:00:21]} 25. Qd3 {[%clk 0:01:07]}  f5 {[%clk 0:00:21]} 26. Bxe7 {[%clk 0:01:06]}  Qxe7 {[%clk 0:00:21]} 27. Qe3 {[%clk 0:00:47]}  Qf6 {[%clk 0:00:13]} 28. Rd4 {[%clk 0:00:40]}  g5 {[%clk 0:00:08]} 29. a4 {[%clk 0:00:34]}  Nf4 {[%clk 0:00:08]} 30. axb5 {[%clk 0:00:32]}  Nxg2 {[%clk 0:00:08]} 31. Qd2 {[%clk 0:00:19]}  Nf4 {[%clk 0:00:08]} 32. bxa6 {[%clk 0:00:14]}  Nxh3+ {[%clk 0:00:07]} 33. Kf1 {[%clk 0:00:15]}  Qe5 {[%clk 0:00:06]} 34. Rxd5 {[%clk 0:00:12]}  Qh2 {[%clk 0:00:05]} 35. Qd4+ {[%clk 0:00:10]}  Kg8 {[%clk 0:00:04]} 36. Rd8+ {[%clk 0:00:07]}  Rxd8 {[%clk 0:00:04]} 37. Qxd8+ {[%clk 0:00:08]}  Kg7 {[%clk 0:00:05]} 38. Qd4+ {[%clk 0:00:08]}  Kg6 {[%clk 0:00:03]} 39. a7 {[%clk 0:00:05]}  Qg1+ {[%clk 0:00:03]} 40. Ke2 {[%clk 0:00:05]}  Qxa1 {[%clk 0:00:04]} 41. Bb3 {[%clk 0:00:04]}  Nf4+ {[%clk 0:00:04]} 42. Kd2 {[%clk 0:00:04]}  Qb2+ {[%clk 0:00:02]} 43. Bc2 {[%clk 0:00:03]}  Qa2 {[%clk 0:00:02]} 44. Qd7 {[%clk 0:00:04]}  Qa6 {[%clk 0:00:02]} 45. Qe8+ {[%clk 0:00:04]}  Kf6 {[%clk 0:00:02]} 46. a8=Q {[%clk 0:00:04]}  Qe2+ {[%clk 0:00:02]} 47. Kc1 {[%clk 0:00:05]}  Qe1+ {[%clk 0:00:03]} 48. Kb2 {[%clk 0:00:05]}  g4 {[%clk 0:00:03]} 49. Qh8+ {[%clk 0:00:06]}  Kg5 {[%clk 0:00:03]} 50. Qag8+ {[%clk 0:00:06]}  Ng6 {[%clk 0:00:03]} 51. Qd8+ {[%clk 0:00:05]}  Kh5 {[%clk 0:00:03]} 52. Qhd4 {[%clk 0:00:05]} 1-0


[Site "https://www.chess.com"]

[Event "Titled Tuesday Blitz October 25 Late 2022"]
[White "Ljukin, Sergei"]
[Black "Czernek, Tymon"]
[WhiteFideId "14102200"]
[BlackFideId "1199510"]
[WhiteElo "2312"]
[BlackElo "2240"]
[Result "0-1"]
[Round "04"]
[TimeControl "180+1"]
[Date "2022.10.26"]
[WhiteClock "0:00:02"]
[BlackClock "0:01:09"]

1. e4 {[%clk 0:02:57]}  c5 {[%clk 0:02:59]} 2. Nf3 {[%clk 0:02:56]}  d6 {[%clk 0:02:59]} 3. d4 {[%clk 0:02:57]}  cxd4 {[%clk 0:03:00]} 4. Nxd4 {[%clk 0:02:57]}  Nf6 {[%clk 0:03:00]} 5. Nc3 {[%clk 0:02:57]}  a6 {[%clk 0:03:00]} 6. Bg5 {[%clk 0:02:57]}  e6 {[%clk 0:03:01]} 7. f4 {[%clk 0:02:58]}  h6 {[%clk 0:03:01]} 8. Bh4 {[%clk 0:02:57]}  Qb6 {[%clk 0:03:01]} 9. a3 {[%clk 0:02:57]}  Be7 {[%clk 0:02:59]} 10. Bf2 {[%clk 0:02:54]}  Qc7 {[%clk 0:02:59]} 11. Qe2 {[%clk 0:02:47]}  Nbd7 {[%clk 0:02:58]} 12. O-O-O {[%clk 0:02:46]}  b5 {[%clk 0:02:55]} 13. g4 {[%clk 0:02:45]}  Bb7 {[%clk 0:02:52]} 14. Bg2 {[%clk 0:02:45]}  Rc8 {[%clk 0:02:46]} 15. h4 {[%clk 0:02:43]}  h5 {[%clk 0:02:12]} 16. g5 {[%clk 0:02:13]}  Ng4 {[%clk 0:02:12]} 17. Bg1 {[%clk 0:02:07]}  Nb6 {[%clk 0:02:10]} 18. g6 {[%clk 0:01:59]}  Nc4 {[%clk 0:02:07]} 19. gxf7+ {[%clk 0:01:57]}  Kxf7 {[%clk 0:02:08]} 20. Rh3 {[%clk 0:01:53]}  Bf6 {[%clk 0:02:05]} 21. f5 {[%clk 0:01:20]}  exf5 {[%clk 0:02:04]} 22. exf5 {[%clk 0:01:13]}  Rhe8 {[%clk 0:01:54]} 23. Ne6 {[%clk 0:00:50]}  Nxb2 {[%clk 0:01:37]} 24. Bxb7 {[%clk 0:00:26]}  Qxb7 {[%clk 0:01:25]} 25. Kxb2 {[%clk 0:00:15]}  b4 {[%clk 0:01:24]} 26. Ka2 {[%clk 0:00:07]}  bxc3 {[%clk 0:01:19]} 27. Rb1 {[%clk 0:00:07]}  Qd5+ {[%clk 0:01:20]} 28. Rb3 {[%clk 0:00:06]}  Qxf5 {[%clk 0:01:20]} 29. Nxg7 {[%clk 0:00:02]}  Kxg7 {[%clk 0:01:13]} 30. Qg2 {[%clk 0:00:02]}  Rb8 {[%clk 0:01:09]} 0-1


[Site "https://www.chess.com"]

[Event "Titled Tuesday Blitz October 25 Late 2022"]
[White "Machidon, Cristi"]
[Black "Rios Escobar, Adan"]
[WhiteFideId "13904590"]
[BlackFideId "3403645"]
[WhiteElo "2312"]
[BlackElo "2365"]
[Result "1-0"]
[Round "04"]
[TimeControl "180+1"]
[Date "2022.10.26"]
[WhiteClock "0:00:41"]
[BlackClock "0:00:01"]

1. d4 {[%clk 0:03:00]}  Nf6 {[%clk 0:02:30]} 2. c4 {[%clk 0:03:00]}  g6 {[%clk 0:02:30]} 3. Nc3 {[%clk 0:03:00]}  Bg7 {[%clk 0:02:30]} 4. e4 {[%clk 0:03:00]}  d6 {[%clk 0:02:31]} 5. Be2 {[%clk 0:03:00]}  O-O {[%clk 0:02:31]} 6. Bg5 {[%clk 0:03:01]}  Na6 {[%clk 0:02:29]} 7. f4 {[%clk 0:03:00]}  h6 {[%clk 0:01:55]} 8. Bh4 {[%clk 0:02:59]}  c5 {[%clk 0:01:44]} 9. d5 {[%clk 0:02:59]}  Qa5 {[%clk 0:01:31]} 10. Bf3 {[%clk 0:02:55]}  Nh5 {[%clk 0:00:57]} 11. Ne2 {[%clk 0:02:38]}  Nxf4 {[%clk 0:00:55]} 12. Nxf4 {[%clk 0:02:38]}  g5 {[%clk 0:00:50]} 13. Bf2 {[%clk 0:01:54]}  Bxc3+ {[%clk 0:00:48]} 14. bxc3 {[%clk 0:01:54]}  Qxc3+ {[%clk 0:00:48]} 15. Kf1 {[%clk 0:01:54]}  gxf4 {[%clk 0:00:46]} 16. Rc1 {[%clk 0:01:53]}  Qg7 {[%clk 0:00:45]} 17. Qd2 {[%clk 0:01:53]}  Nb4 {[%clk 0:00:38]} 18. a3 {[%clk 0:01:52]}  Na6 {[%clk 0:00:33]} 19. g3 {[%clk 0:01:15]}  fxg3 {[%clk 0:00:24]} 20. hxg3 {[%clk 0:01:15]}  f5 {[%clk 0:00:23]} 21. e5 {[%clk 0:01:15]}  dxe5 {[%clk 0:00:20]} 22. Rxh6 {[%clk 0:01:13]}  f4 {[%clk 0:00:19]} 23. Rh5 {[%clk 0:01:05]}  Bg4 {[%clk 0:00:14]} 24. Bxg4 {[%clk 0:01:04]}  Qxg4 {[%clk 0:00:15]} 25. Rxe5 {[%clk 0:01:04]}  Rf7 {[%clk 0:00:06]} 26. Rce1 {[%clk 0:00:50]}  Raf8 {[%clk 0:00:06]} 27. Kg2 {[%clk 0:00:46]}  fxg3 {[%clk 0:00:04]} 28. Rg5+ {[%clk 0:00:45]}  Rg7 {[%clk 0:00:01]} 29. Rxg4 {[%clk 0:00:41]} 1-0


[Site "https://www.chess.com"]

[Event "Titled Tuesday Blitz October 25 Late 2022"]
[White "Maksimovic, Bojan"]
[Black "Makarian, Rudik"]
[WhiteFideId "14408120"]
[BlackFideId "44105681"]
[WhiteElo "2447"]
[BlackElo "2405"]
[Result "1-0"]
[Round "04"]
[TimeControl "180+1"]
[Date "2022.10.26"]
[WhiteClock "0:00:15"]
[BlackClock "0:00:10"]

1. e4 {[%clk 0:03:00]}  c5 {[%clk 0:02:59]} 2. Nf3 {[%clk 0:03:01]}  e6 {[%clk 0:02:59]} 3. d4 {[%clk 0:03:01]}  cxd4 {[%clk 0:03:00]} 4. Nxd4 {[%clk 0:03:02]}  Nc6 {[%clk 0:03:00]} 5. Nc3 {[%clk 0:03:02]}  Qc7 {[%clk 0:03:01]} 6. Be3 {[%clk 0:03:01]}  a6 {[%clk 0:03:01]} 7. Qf3 {[%clk 0:03:01]}  b5 {[%clk 0:02:59]} 8. Qg3 {[%clk 0:02:45]}  Bd6 {[%clk 0:02:48]} 9. f4 {[%clk 0:02:43]}  Nxd4 {[%clk 0:02:48]} 10. Bxd4 {[%clk 0:02:43]}  Ne7 {[%clk 0:02:48]} 11. e5 {[%clk 0:02:13]}  Bc5 {[%clk 0:02:45]} 12. Bxc5 {[%clk 0:01:55]}  Qxc5 {[%clk 0:02:46]} 13. Bd3 {[%clk 0:01:55]}  Bb7 {[%clk 0:02:46]} 14. O-O-O {[%clk 0:01:50]}  O-O {[%clk 0:02:45]} 15. Ne4 {[%clk 0:01:47]}  Bxe4 {[%clk 0:02:46]} 16. Bxe4 {[%clk 0:01:48]}  Ra7 {[%clk 0:02:47]} 17. Rd3 {[%clk 0:01:43]}  Rc7 {[%clk 0:02:37]} 18. Rc3 {[%clk 0:01:27]}  Qb6 {[%clk 0:02:35]} 19. Rxc7 {[%clk 0:01:25]}  Qxc7 {[%clk 0:02:36]} 20. Rd1 {[%clk 0:01:17]}  h6 {[%clk 0:02:33]} 21. Qd3 {[%clk 0:01:16]}  Qa7 {[%clk 0:01:41]} 22. Qd4 {[%clk 0:01:16]}  Qxd4 {[%clk 0:01:27]} 23. Rxd4 {[%clk 0:01:17]}  Rd8 {[%clk 0:01:28]} 24. Rd6 {[%clk 0:01:17]}  a5 {[%clk 0:01:23]} 25. Ra6 {[%clk 0:01:17]}  a4 {[%clk 0:01:12]} 26. Rb6 {[%clk 0:01:18]}  g5 {[%clk 0:01:07]} 27. g3 {[%clk 0:01:17]}  Kg7 {[%clk 0:00:57]} 28. Rxb5 {[%clk 0:01:16]}  d5 {[%clk 0:00:50]} 29. Bd3 {[%clk 0:01:14]}  gxf4 {[%clk 0:00:41]} 30. gxf4 {[%clk 0:01:15]}  Ng6 {[%clk 0:00:42]} 31. Rb4 {[%clk 0:01:04]}  a3 {[%clk 0:00:31]} 32. bxa3 {[%clk 0:01:04]}  d4 {[%clk 0:00:30]} 33. Bxg6 {[%clk 0:00:40]}  Kxg6 {[%clk 0:00:31]} 34. Kd2 {[%clk 0:00:41]}  Kf5 {[%clk 0:00:29]} 35. Kd3 {[%clk 0:00:41]}  Ra8 {[%clk 0:00:28]} 36. a4 {[%clk 0:00:29]}  Kxf4 {[%clk 0:00:27]} 37. Kxd4 {[%clk 0:00:30]}  Rd8+ {[%clk 0:00:24]} 38. Kc5+ {[%clk 0:00:29]}  Kxe5 {[%clk 0:00:25]} 39. a5 {[%clk 0:00:29]}  Rc8+ {[%clk 0:00:11]} 40. Kb6 {[%clk 0:00:21]}  Rxc2 {[%clk 0:00:11]} 41. a4 {[%clk 0:00:21]}  Kd6 {[%clk 0:00:05]} 42. a6 {[%clk 0:00:17]}  Rc6+ {[%clk 0:00:05]} 43. Kb7 {[%clk 0:00:17]}  Rc7+ {[%clk 0:00:05]} 44. Kb8 {[%clk 0:00:18]}  f5 {[%clk 0:00:05]} 45. a7 {[%clk 0:00:18]}  Rxa7 {[%clk 0:00:05]} 46. Kxa7 {[%clk 0:00:18]}  e5 {[%clk 0:00:06]} 47. a5 {[%clk 0:00:18]}  e4 {[%clk 0:00:07]} 48. a6 {[%clk 0:00:18]}  e3 {[%clk 0:00:07]} 49. Kb7 {[%clk 0:00:15]}  e2 {[%clk 0:00:08]} 50. Rb1 {[%clk 0:00:14]}  f4 {[%clk 0:00:08]} 51. a7 {[%clk 0:00:14]}  f3 {[%clk 0:00:09]} 52. a8=Q {[%clk 0:00:15]}  f2 {[%clk 0:00:10]} 53. Qd8+ {[%clk 0:00:15]}  Kc5 {[%clk 0:00:10]} 54. Qe7+ {[%clk 0:00:15]} 1-0


[Site "https://www.chess.com"]

[Event "Titled Tuesday Blitz October 25 Late 2022"]
[White "Manukian, Artak"]
[Black "Romero Ruscalleda, Josep"]
[WhiteFideId "13301373"]
[BlackFideId "2231859"]
[WhiteElo "2489"]
[BlackElo "2342"]
[Result "1-0"]
[Round "04"]
[TimeControl "180+1"]
[Date "2022.10.26"]
[WhiteClock "0:00:19"]
[BlackClock "0:00:08"]

1. e4 {[%clk 0:02:44]}  g6 {[%clk 0:03:00]} 2. d4 {[%clk 0:02:44]}  Bg7 {[%clk 0:03:00]} 3. c4 {[%clk 0:02:44]}  d6 {[%clk 0:03:01]} 4. Nc3 {[%clk 0:02:43]}  e5 {[%clk 0:03:01]} 5. d5 {[%clk 0:02:43]}  Ne7 {[%clk 0:03:00]} 6. g4 {[%clk 0:02:41]}  O-O {[%clk 0:02:59]} 7. Bd3 {[%clk 0:02:40]}  f5 {[%clk 0:02:58]} 8. gxf5 {[%clk 0:02:40]}  gxf5 {[%clk 0:02:58]} 9. Nge2 {[%clk 0:02:40]}  f4 {[%clk 0:02:55]} 10. Kd2 {[%clk 0:02:21]}  Na6 {[%clk 0:02:41]} 11. Rg1 {[%clk 0:02:03]}  Kh8 {[%clk 0:02:35]} 12. a3 {[%clk 0:02:00]}  Ng6 {[%clk 0:02:33]} 13. Kc2 {[%clk 0:01:57]}  Qh4 {[%clk 0:02:29]} 14. f3 {[%clk 0:01:52]}  Nc5 {[%clk 0:02:18]} 15. Bd2 {[%clk 0:01:44]}  Bh3 {[%clk 0:02:02]} 16. Be1 {[%clk 0:01:37]}  Qh5 {[%clk 0:02:01]} 17. Nc1 {[%clk 0:01:32]}  Nxd3 {[%clk 0:02:00]} 18. Nxd3 {[%clk 0:01:29]}  Bf6 {[%clk 0:01:55]} 19. Bf2 {[%clk 0:01:22]}  a6 {[%clk 0:01:55]} 20. b4 {[%clk 0:01:14]}  Bh4 {[%clk 0:01:53]} 21. Kb3 {[%clk 0:01:07]}  Rg8 {[%clk 0:01:49]} 22. Ra2 {[%clk 0:01:00]}  Rg7 {[%clk 0:01:48]} 23. c5 {[%clk 0:00:55]}  Rag8 {[%clk 0:01:45]} 24. b5 {[%clk 0:00:51]}  axb5 {[%clk 0:01:41]} 25. Nxb5 {[%clk 0:00:47]}  Bxf2 {[%clk 0:01:31]} 26. Rxf2 {[%clk 0:00:48]}  Bd7 {[%clk 0:01:17]} 27. Nxc7 {[%clk 0:00:44]}  dxc5 {[%clk 0:01:04]} 28. Nxc5 {[%clk 0:00:41]}  Ne7 {[%clk 0:00:54]} 29. Rxg7 {[%clk 0:00:37]}  Rxg7 {[%clk 0:00:54]} 30. Nxd7 {[%clk 0:00:37]}  Nc8 {[%clk 0:00:47]} 31. Nxe5 {[%clk 0:00:31]}  Qxe5 {[%clk 0:00:41]} 32. Ne6 {[%clk 0:00:31]}  Rd7 {[%clk 0:00:38]} 33. Rg2 {[%clk 0:00:27]}  h6 {[%clk 0:00:27]} 34. Nf8 {[%clk 0:00:21]}  Rd6 {[%clk 0:00:19]} 35. Ng6+ {[%clk 0:00:21]}  Rxg6 {[%clk 0:00:19]} 36. Rxg6 {[%clk 0:00:22]}  Qe8 {[%clk 0:00:16]} 37. Qd4+ {[%clk 0:00:19]}  Kh7 {[%clk 0:00:08]} 38. Qg7# {[%clk 0:00:19]} 1-0


[Site "https://www.chess.com"]

[Event "Titled Tuesday Blitz October 25 Late 2022"]
[White "Marcolino, Daniel Mattos"]
[Black "Mazurkiewicz, Michal"]
[WhiteFideId "2106841"]
[BlackFideId "1124943"]
[WhiteElo "2091"]
[BlackElo "2063"]
[Result "0-1"]
[Round "04"]
[TimeControl "180+1"]
[Date "2022.10.26"]
[WhiteClock "0:00:16"]
[BlackClock "0:00:23"]

1. d4 {[%clk 0:03:00]}  Nf6 {[%clk 0:02:59]} 2. Nf3 {[%clk 0:03:01]}  g6 {[%clk 0:02:59]} 3. g3 {[%clk 0:03:01]}  Bg7 {[%clk 0:02:59]} 4. Bg2 {[%clk 0:03:02]}  O-O {[%clk 0:03:00]} 5. O-O {[%clk 0:03:02]}  d6 {[%clk 0:03:00]} 6. b3 {[%clk 0:03:03]}  c5 {[%clk 0:03:00]} 7. Bb2 {[%clk 0:03:03]}  cxd4 {[%clk 0:03:00]} 8. Nxd4 {[%clk 0:03:03]}  Qa5 {[%clk 0:03:00]} 9. Nd2 {[%clk 0:02:51]}  Qh5 {[%clk 0:02:57]} 10. N2f3 {[%clk 0:02:21]}  Bh3 {[%clk 0:02:04]} 11. c4 {[%clk 0:02:13]}  Ng4 {[%clk 0:01:57]} 12. Qd2 {[%clk 0:02:05]}  Nd7 {[%clk 0:01:40]} 13. e4 {[%clk 0:01:45]}  Nde5 {[%clk 0:01:27]} 14. Nxe5 {[%clk 0:01:22]}  Nxe5 {[%clk 0:01:17]} 15. Bxh3 {[%clk 0:01:10]}  Qxh3 {[%clk 0:01:16]} 16. f4 {[%clk 0:01:10]}  Ng4 {[%clk 0:01:01]} 17. Nf3 {[%clk 0:01:10]}  Bxb2 {[%clk 0:00:59]} 18. Qxb2 {[%clk 0:01:11]}  Qh5 {[%clk 0:00:59]} 19. Rad1 {[%clk 0:01:05]}  Ne3 {[%clk 0:00:47]} 20. Rd5 {[%clk 0:01:02]}  Nxd5 {[%clk 0:00:45]} 21. exd5 {[%clk 0:01:02]}  a5 {[%clk 0:00:41]} 22. Ng5 {[%clk 0:01:01]}  a4 {[%clk 0:00:36]} 23. Re1 {[%clk 0:01:00]}  a3 {[%clk 0:00:36]} 24. Qc3 {[%clk 0:00:58]}  h6 {[%clk 0:00:35]} 25. Ne4 {[%clk 0:00:53]}  Qf5 {[%clk 0:00:35]} 26. Nd2 {[%clk 0:00:44]}  b5 {[%clk 0:00:34]} 27. Nf3 {[%clk 0:00:43]}  bxc4 {[%clk 0:00:33]} 28. bxc4 {[%clk 0:00:44]}  Rfb8 {[%clk 0:00:30]} 29. Nd4 {[%clk 0:00:44]}  Qh3 {[%clk 0:00:28]} 30. Nc6 {[%clk 0:00:36]}  Rb2 {[%clk 0:00:23]} 31. Nxe7+ {[%clk 0:00:33]}  Kh7 {[%clk 0:00:23]} 32. Qf3 {[%clk 0:00:16]}  Qxh2+ {[%clk 0:00:23]} 33. Kf1 {[%clk 0:00:16]}  Re8 {[%clk 0:00:23]} 0-1


[Site "https://www.chess.com"]

[Event "Titled Tuesday Blitz October 25 Late 2022"]
[White "Melikhov, Evgeny V."]
[Black "Pinheiro, Iung Alicio de O."]
[WhiteFideId "4122046"]
[BlackFideId "2104350"]
[WhiteElo "2169"]
[BlackElo "2283"]
[Result "0-1"]
[Round "04"]
[TimeControl "180+1"]
[Date "2022.10.26"]
[WhiteClock "0:00:33"]
[BlackClock "0:01:15"]

1. d4 {[%clk 0:03:00]}  Nf6 {[%clk 0:02:58]} 2. c4 {[%clk 0:03:01]}  g6 {[%clk 0:02:57]} 3. Nc3 {[%clk 0:03:01]}  Bg7 {[%clk 0:02:56]} 4. e4 {[%clk 0:03:01]}  d6 {[%clk 0:02:57]} 5. f3 {[%clk 0:03:01]}  Nbd7 {[%clk 0:02:56]} 6. Be3 {[%clk 0:02:57]}  a6 {[%clk 0:02:56]} 7. Nge2 {[%clk 0:02:53]}  c5 {[%clk 0:02:55]} 8. d5 {[%clk 0:02:51]}  O-O {[%clk 0:02:53]} 9. Ng3 {[%clk 0:02:49]}  b5 {[%clk 0:02:53]} 10. Qd2 {[%clk 0:02:33]}  Qa5 {[%clk 0:02:51]} 11. cxb5 {[%clk 0:02:23]}  Nb6 {[%clk 0:02:49]} 12. Be2 {[%clk 0:01:46]}  axb5 {[%clk 0:02:48]} 13. O-O {[%clk 0:01:46]}  b4 {[%clk 0:02:42]} 14. Nb1 {[%clk 0:01:37]}  Ba6 {[%clk 0:02:40]} 15. a4 {[%clk 0:01:27]}  Bxe2 {[%clk 0:02:35]} 16. Qxe2 {[%clk 0:01:25]}  Nfd7 {[%clk 0:02:25]} 17. Ra2 {[%clk 0:01:19]}  Rfe8 {[%clk 0:01:46]} 18. b3 {[%clk 0:01:17]}  e6 {[%clk 0:01:45]} 19. dxe6 {[%clk 0:01:15]}  Rxe6 {[%clk 0:01:46]} 20. Nd2 {[%clk 0:01:14]}  d5 {[%clk 0:01:45]} 21. exd5 {[%clk 0:00:57]}  Nxd5 {[%clk 0:01:41]} 22. Nge4 {[%clk 0:00:56]}  Nxe3 {[%clk 0:01:38]} 23. Re1 {[%clk 0:00:51]}  Nf5 {[%clk 0:01:25]} 24. Nc4 {[%clk 0:00:50]}  Qa6 {[%clk 0:01:25]} 25. Kh1 {[%clk 0:00:49]}  Rae8 {[%clk 0:01:22]} 26. Qd3 {[%clk 0:00:48]}  Nd4 {[%clk 0:01:21]} 27. Rd1 {[%clk 0:00:47]}  f5 {[%clk 0:01:19]} 28. Ng3 {[%clk 0:00:47]}  Re1+ {[%clk 0:01:18]} 29. Nf1 {[%clk 0:00:44]}  Rxd1 {[%clk 0:01:15]} 30. Qxd1 {[%clk 0:00:44]}  Qe6 {[%clk 0:01:16]} 31. Rd2 {[%clk 0:00:39]}  Ne5 {[%clk 0:01:16]} 32. Nfe3 {[%clk 0:00:33]}  Nxc4 {[%clk 0:01:15]} 33. Nxc4 {[%clk 0:00:33]}  Qe1+ {[%clk 0:01:15]} 0-1


[Site "https://www.chess.com"]

[Event "Titled Tuesday Blitz October 25 Late 2022"]
[White "Mikhalsky, Vladimir"]
[Black "Barria Zuniga, Daniel"]
[WhiteFideId "14144352"]
[BlackFideId "3400816"]
[WhiteElo "2271"]
[BlackElo "2414"]
[Result "0-1"]
[Round "04"]
[TimeControl "180+1"]
[Date "2022.10.26"]
[WhiteClock "0:00:17"]
[BlackClock "0:00:44"]

1. d4 {[%clk 0:03:00]}  g6 {[%clk 0:02:56]} 2. e4 {[%clk 0:03:00]}  Bg7 {[%clk 0:02:56]} 3. c4 {[%clk 0:02:55]}  c5 {[%clk 0:02:56]} 4. d5 {[%clk 0:02:54]}  d6 {[%clk 0:02:57]} 5. Nc3 {[%clk 0:02:52]}  e6 {[%clk 0:02:57]} 6. Bd3 {[%clk 0:02:50]}  exd5 {[%clk 0:02:56]} 7. cxd5 {[%clk 0:02:50]}  a6 {[%clk 0:02:57]} 8. a4 {[%clk 0:02:50]}  Ne7 {[%clk 0:02:57]} 9. h3 {[%clk 0:02:47]}  O-O {[%clk 0:02:58]} 10. Nf3 {[%clk 0:02:29]}  f5 {[%clk 0:02:58]} 11. O-O {[%clk 0:02:28]}  f4 {[%clk 0:02:58]} 12. Ng5 {[%clk 0:02:25]}  h6 {[%clk 0:02:51]} 13. Ne6 {[%clk 0:02:25]}  Bxe6 {[%clk 0:02:52]} 14. dxe6 {[%clk 0:02:25]}  Nbc6 {[%clk 0:02:52]} 15. Nd5 {[%clk 0:02:23]}  g5 {[%clk 0:02:39]} 16. Bb1 {[%clk 0:02:04]}  Ne5 {[%clk 0:02:21]} 17. h4 {[%clk 0:02:01]}  f3 {[%clk 0:02:12]} 18. hxg5 {[%clk 0:01:54]}  Nxd5 {[%clk 0:02:12]} 19. Qxd5 {[%clk 0:01:38]}  Kh8 {[%clk 0:02:08]} 20. gxh6 {[%clk 0:01:37]}  Rg8 {[%clk 0:01:52]} 21. hxg7+ {[%clk 0:01:35]}  Rxg7 {[%clk 0:01:51]} 22. g3 {[%clk 0:01:15]}  Qh4 {[%clk 0:01:48]} 23. Qd2 {[%clk 0:00:29]}  Rg6 {[%clk 0:00:49]} 24. e7 {[%clk 0:00:17]}  Qh3 {[%clk 0:00:44]} 0-1


[Site "https://www.chess.com"]